[Event "*** SCC Grand Prix: Titled Tuesday Blitz"]
[Site "Chess.com"]
[Date "2020.06.02"]
[Round "1"]
[White "VinzentSpitzl"]
[Black "avantage_ru"]
[Result "1/2-1/2"]
[WhiteElo "2383"]
[BlackElo "2724"]
[TimeControl "180+1"]
[EndTime "10:07:54 PDT"]
[Termination "Game drawn by stalemate"]

1. e4 {[%clk 0:03:00.9]} 1... d6 {[%clk 0:02:58.2]} 2. d4 {[%clk 0:02:59.7]}
2... Nf6 {[%clk 0:02:57.4]} 3. Nc3 {[%clk 0:02:54.1]} 3... c6 {[%clk 0:02:56.9]}
4. Be3 {[%clk 0:02:53.9]} 4... Qb6 {[%clk 0:02:53.8]} 5. Nge2 {[%clk 0:02:38.8]}
5... Qxb2 {[%clk 0:02:49.6]} 6. Rb1 {[%clk 0:02:38]} 6... Qa3 {[%clk 0:02:47.4]}
7. h3 {[%clk 0:02:37.8]} 7... e5 {[%clk 0:02:44.3]} 8. Rb3 {[%clk 0:02:32.5]}
8... Qa5 {[%clk 0:02:43.1]} 9. g4 {[%clk 0:02:30.7]} 9... Nxe4 {[%clk
0:02:38.6]} 10. Bg2 {[%clk 0:02:10.2]} 10... Nxc3 {[%clk 0:02:38.1]} 11. Nxc3
{[%clk 0:02:11.1]} 11... Nd7 {[%clk 0:02:35]} 12. O-O {[%clk 0:02:09.5]} 12...
Be7 {[%clk 0:02:34.5]} 13. d5 {[%clk 0:02:01.3]} 13... c5 {[%clk 0:02:29.5]} 14.
Ne4 {[%clk 0:01:55.2]} 14... Nf6 {[%clk 0:02:17.4]} 15. c4 {[%clk 0:01:48.7]}
15... O-O {[%clk 0:02:11.8]} 16. Qd3 {[%clk 0:01:44.5]} 16... Nxe4 {[%clk
0:01:53.4]} 17. Bxe4 {[%clk 0:01:45.4]} 17... g6 {[%clk 0:01:45.4]} 18. Bh6
{[%clk 0:01:33.7]} 18... Re8 {[%clk 0:01:26.8]} 19. f4 {[%clk 0:01:26.9]} 19...
Bf8 {[%clk 0:01:22.6]} 20. Bxf8 {[%clk 0:00:59.6]} 20... Rxf8 {[%clk 0:01:22]}
21. f5 {[%clk 0:00:59.2]} 21... Qxa2 {[%clk 0:00:52.2]} 22. fxg6 {[%clk
0:00:20.1]} 22... fxg6 {[%clk 0:00:53.1]} 23. Rxf8+ {[%clk 0:00:18.5]} 23...
Kxf8 {[%clk 0:00:54]} 24. Bxg6 {[%clk 0:00:16]} 24... Qa1+ {[%clk 0:00:48.5]}
25. Kh2 {[%clk 0:00:13.6]} 25... Qd4 {[%clk 0:00:45.4]} 26. Qf3+ {[%clk
0:00:13.1]} 26... Qf4+ {[%clk 0:00:45.2]} 27. Qxf4+ {[%clk 0:00:13.6]} 27...
exf4 {[%clk 0:00:46]} 28. Bxh7 {[%clk 0:00:14.5]} 28... a5 {[%clk 0:00:43.8]}
29. Bc2 {[%clk 0:00:12.7]} 29... a4 {[%clk 0:00:40.7]} 30. Ra3 {[%clk
0:00:13.1]} 30... Bd7 {[%clk 0:00:39.9]} 31. Kg2 {[%clk 0:00:13.4]} 31... Kg7
{[%clk 0:00:32.5]} 32. Kf3 {[%clk 0:00:13.5]} 32... Rf8 {[%clk 0:00:32.5]} 33.
h4 {[%clk 0:00:13.8]} 33... b5 {[%clk 0:00:31.8]} 34. cxb5 {[%clk 0:00:13.6]}
34... Bxb5 {[%clk 0:00:31.9]} 35. g5 {[%clk 0:00:11.8]} 35... Bc4 {[%clk
0:00:31.7]} 36. Rxa4 {[%clk 0:00:10.5]} 36... Bxd5+ {[%clk 0:00:31.4]} 37. Kf2
{[%clk 0:00:11]} 37... Rb8 {[%clk 0:00:27.8]} 38. Ra7+ {[%clk 0:00:11.1]} 38...
Rb7 {[%clk 0:00:26.6]} 39. Rxb7+ {[%clk 0:00:10.7]} 39... Bxb7 {[%clk
0:00:27.5]} 40. h5 {[%clk 0:00:11.5]} 40... Bd5 {[%clk 0:00:15.9]} 41. h6+
{[%clk 0:00:11.7]} 41... Kg8 {[%clk 0:00:13.8]} 42. g6 {[%clk 0:00:12.1]} 42...
c4 {[%clk 0:00:12.5]} 43. Bf5 {[%clk 0:00:10.2]} 43... c3 {[%clk 0:00:11.9]} 44.
Bc2 {[%clk 0:00:09.4]} 44... Be6 {[%clk 0:00:11]} 45. Kf3 {[%clk 0:00:08.5]}
45... d5 {[%clk 0:00:09.9]} 46. Kxf4 {[%clk 0:00:08.7]} 46... Bd7 {[%clk
0:00:09.9]} 47. Ke5 {[%clk 0:00:08.3]} 47... Be8 {[%clk 0:00:10.4]} 48. Kxd5
{[%clk 0:00:06.7]} 48... Bxg6 {[%clk 0:00:10.3]} 49. Bxg6 {[%clk 0:00:06.9]}
49... c2 {[%clk 0:00:10.6]} 50. Bxc2 {[%clk 0:00:06.6]} 50... Kh8 {[%clk
0:00:10.8]} 51. Ke5 {[%clk 0:00:07.2]} 51... Kg8 {[%clk 0:00:11.7]} 52. Kf6
{[%clk 0:00:07.8]} 52... Kh8 {[%clk 0:00:12.6]} 53. h7 {[%clk 0:00:08.4]}
1/2-1/2

[Event "*** SCC Grand Prix: Titled Tuesday Blitz"]
[Site "Chess.com"]
[Date "2020.06.02"]
[Round "1"]
[White "MPGM"]
[Black "Ashedu66"]
[Result "1-0"]
[WhiteElo "2527"]
[BlackElo "2165"]
[TimeControl "180+1"]
[EndTime "10:07:54 PDT"]
[Termination "MPGM won on time"]

1. d4 {[%clk 0:02:58.4]} 1... d5 {[%clk 0:02:53.7]} 2. c4 {[%clk 0:02:57]} 2...
c6 {[%clk 0:02:53.3]} 3. Nf3 {[%clk 0:02:56.1]} 3... Nf6 {[%clk 0:02:52.9]} 4.
Nc3 {[%clk 0:02:55]} 4... e6 {[%clk 0:02:53]} 5. e3 {[%clk 0:02:49.5]} 5... Nbd7
{[%clk 0:02:52.2]} 6. Bd3 {[%clk 0:02:48.4]} 6... Bd6 {[%clk 0:02:49.7]} 7. O-O
{[%clk 0:02:46.9]} 7... O-O {[%clk 0:02:49.3]} 8. e4 {[%clk 0:02:46.1]} 8...
dxc4 {[%clk 0:02:45.7]} 9. Bxc4 {[%clk 0:02:44.3]} 9... e5 {[%clk 0:02:45.5]}
10. Bg5 {[%clk 0:02:34.5]} 10... Qe7 {[%clk 0:02:41.9]} 11. d5 {[%clk
0:02:13.7]} 11... Nb6 {[%clk 0:02:32.8]} 12. Bb3 {[%clk 0:02:08.6]} 12... Bg4
{[%clk 0:02:27.1]} 13. h3 {[%clk 0:02:06.2]} 13... Bh5 {[%clk 0:02:24.3]} 14.
Qd3 {[%clk 0:01:50]} 14... h6 {[%clk 0:02:11.9]} 15. Bh4 {[%clk 0:01:46.8]}
15... Bg6 {[%clk 0:02:00.1]} 16. Rfd1 {[%clk 0:01:41.7]} 16... Rad8 {[%clk
0:01:57.4]} 17. Qe2 {[%clk 0:01:22.5]} 17... Bb4 {[%clk 0:01:46.8]} 18. Rac1
{[%clk 0:01:07.7]} 18... Rfe8 {[%clk 0:01:31.2]} 19. dxc6 {[%clk 0:00:53.4]}
19... bxc6 {[%clk 0:01:29.1]} 20. a3 {[%clk 0:00:45.6]} 20... Rxd1+ {[%clk
0:01:14.7]} 21. Nxd1 {[%clk 0:00:42.2]} 21... Bc5 {[%clk 0:00:55.7]} 22. Bxf6
{[%clk 0:00:33.3]} 22... gxf6 {[%clk 0:00:55.7]} 23. Nh4 {[%clk 0:00:32.7]}
23... Kh7 {[%clk 0:00:47.8]} 24. Ne3 {[%clk 0:00:19.9]} 24... Bxe3 {[%clk
0:00:44.3]} 25. Qxe3 {[%clk 0:00:18.5]} 25... Qd6 {[%clk 0:00:20.5]} 26. Rd1
{[%clk 0:00:16.6]} 26... Qe7 {[%clk 0:00:20.4]} 27. Qf3 {[%clk 0:00:14.4]} 27...
Rd8 {[%clk 0:00:17.1]} 28. Rxd8 {[%clk 0:00:13.7]} 28... Qxd8 {[%clk 0:00:17.3]}
29. Kh2 {[%clk 0:00:12.5]} 29... c5 {[%clk 0:00:16.5]} 30. Bd5 {[%clk
0:00:10.7]} 30... Nxd5 {[%clk 0:00:16]} 31. exd5 {[%clk 0:00:11.6]} 31... Qd7
{[%clk 0:00:15.7]} 32. Nxg6 {[%clk 0:00:09.4]} 32... Kxg6 {[%clk 0:00:13.9]} 33.
g4 {[%clk 0:00:07]} 33... Qd6 {[%clk 0:00:11]} 34. Qe4+ {[%clk 0:00:06.2]} 34...
Kg7 {[%clk 0:00:11.2]} 35. Kg3 {[%clk 0:00:06.3]} 35... a5 {[%clk 0:00:11]} 36.
b3 {[%clk 0:00:05.3]} 36... Qb6 {[%clk 0:00:10.3]} 37. Qc4 {[%clk 0:00:05.4]}
37... Qd6 {[%clk 0:00:10]} 38. Kf3 {[%clk 0:00:06]} 38... h5 {[%clk 0:00:08.3]}
39. Ke4 {[%clk 0:00:05.8]} 39... hxg4 {[%clk 0:00:07.7]} 40. hxg4 {[%clk
0:00:06.7]} 40... Kg6 {[%clk 0:00:07.9]} 41. f3 {[%clk 0:00:06.5]} 41... Kg5
{[%clk 0:00:06.3]} 42. Qc1+ {[%clk 0:00:06]} 42... Kg6 {[%clk 0:00:06.5]} 43.
Qc3 {[%clk 0:00:04.7]} 43... Kg5 {[%clk 0:00:05.2]} 44. Qxa5 {[%clk 0:00:04.5]}
44... Qb8 {[%clk 0:00:03.5]} 45. Qc3 {[%clk 0:00:02.7]} 1-0

[Event "*** SCC Grand Prix: Titled Tuesday Blitz"]
[Site "Chess.com"]
[Date "2020.06.02"]
[Round "1"]
[White "ENEASZ"]
[Black "rugbyclub"]
[Result "1-0"]
[WhiteElo "2506"]
[BlackElo "2102"]
[TimeControl "180+1"]
[EndTime "10:07:54 PDT"]
[Termination "ENEASZ won on time"]

1. e4 {[%clk 0:03:00.9]} 1... e5 {[%clk 0:02:57]} 2. Nf3 {[%clk 0:02:59.6]} 2...
Nc6 {[%clk 0:02:52.1]} 3. Bc4 {[%clk 0:02:59.2]} 3... Bc5 {[%clk 0:02:50.1]} 4.
O-O {[%clk 0:02:58]} 4... Nf6 {[%clk 0:02:49.9]} 5. d3 {[%clk 0:02:57.6]} 5...
d6 {[%clk 0:02:49]} 6. c3 {[%clk 0:02:56.8]} 6... h6 {[%clk 0:02:41.1]} 7. Nbd2
{[%clk 0:02:56.3]} 7... a6 {[%clk 0:02:31.6]} 8. Bb3 {[%clk 0:02:53.6]} 8... O-O
{[%clk 0:02:29.3]} 9. Nc4 {[%clk 0:02:53.3]} 9... Ne7 {[%clk 0:02:27.1]} 10. Be3
{[%clk 0:02:52.4]} 10... Ng6 {[%clk 0:02:15.2]} 11. Bxc5 {[%clk 0:02:50.2]}
11... dxc5 {[%clk 0:02:15.1]} 12. Ncxe5 {[%clk 0:02:50.3]} 12... Nxe5 {[%clk
0:02:10.5]} 13. Nxe5 {[%clk 0:02:51.2]} 13... Qd6 {[%clk 0:02:06.9]} 14. Nc4
{[%clk 0:02:47.9]} 14... Qd7 {[%clk 0:02:03.7]} 15. Qe2 {[%clk 0:02:44.3]} 15...
b5 {[%clk 0:02:02.8]} 16. Ne3 {[%clk 0:02:42]} 16... c6 {[%clk 0:02:00.2]} 17.
Rad1 {[%clk 0:02:41.3]} 17... Re8 {[%clk 0:01:58.8]} 18. f3 {[%clk 0:02:38.4]}
18... Qc7 {[%clk 0:01:57.9]} 19. d4 {[%clk 0:02:38.1]} 19... c4 {[%clk
0:01:54.1]} 20. Bc2 {[%clk 0:02:37.9]} 20... Qb6 {[%clk 0:01:43.1]} 21. e5
{[%clk 0:02:34.1]} 21... Nd7 {[%clk 0:01:37.2]} 22. Kh1 {[%clk 0:02:29.6]} 22...
Bb7 {[%clk 0:01:37.3]} 23. Nf5 {[%clk 0:02:29]} 23... c5 {[%clk 0:01:21.8]} 24.
f4 {[%clk 0:02:27.8]} 24... cxd4 {[%clk 0:01:20.5]} 25. cxd4 {[%clk 0:02:28.6]}
25... Bd5 {[%clk 0:01:13.3]} 26. Qg4 {[%clk 0:02:27.7]} 26... g6 {[%clk
0:00:54]} 27. Nxh6+ {[%clk 0:02:24.5]} 27... Kf8 {[%clk 0:00:53.9]} 28. f5
{[%clk 0:02:24.3]} 28... gxf5 {[%clk 0:00:51.8]} 29. Qxf5 {[%clk 0:02:04.4]}
29... Qxh6 {[%clk 0:00:48.7]} 30. Qxd7 {[%clk 0:02:04.4]} 30... Rad8 {[%clk
0:00:39.4]} 31. Qg4 {[%clk 0:02:03.6]} 31... Ke7 {[%clk 0:00:32.1]} 32. Rf6
{[%clk 0:02:00.4]} 32... Qe3 {[%clk 0:00:25.4]} 33. Qf4 {[%clk 0:01:34.4]} 33...
Qe2 {[%clk 0:00:22.7]} 34. Qf2 {[%clk 0:01:33.6]} 34... Qh5 {[%clk 0:00:20.4]}
35. Rf5 {[%clk 0:01:00.1]} 35... Qh6 {[%clk 0:00:14.2]} 36. Qf4 {[%clk
0:00:33.3]} 36... Qg6 {[%clk 0:00:11.1]} 37. Qg5+ {[%clk 0:00:26.7]} 37... Qxg5
{[%clk 0:00:09.7]} 38. Rxg5 {[%clk 0:00:27.6]} 38... Rg8 {[%clk 0:00:09.5]} 39.
Rxg8 {[%clk 0:00:26.9]} 39... Rxg8 {[%clk 0:00:10.2]} 40. Rd2 {[%clk 0:00:27.8]}
40... Rg4 {[%clk 0:00:09.5]} 41. Kg1 {[%clk 0:00:27.2]} 41... Ke6 {[%clk
0:00:05.9]} 42. h3 {[%clk 0:00:25.2]} 42... Rg5 {[%clk 0:00:02.3]} 43. a3 {[%clk
0:00:25]} 43... f6 {[%clk 0:00:02.4]} 44. exf6 {[%clk 0:00:24.3]} 44... Kxf6
{[%clk 0:00:03.1]} 45. Rf2+ {[%clk 0:00:24.9]} 45... Ke6 {[%clk 0:00:03.5]} 46.
Kh2 {[%clk 0:00:25.8]} 46... a5 {[%clk 0:00:02.8]} 47. g4 {[%clk 0:00:25.9]}
47... b4 {[%clk 0:00:02.8]} 48. axb4 {[%clk 0:00:26.8]} 48... axb4 {[%clk
0:00:03.3]} 49. Kg3 {[%clk 0:00:27.6]} 49... Rg8 {[%clk 0:00:02.6]} 50. Bf5+
{[%clk 0:00:27.9]} 50... Kd6 {[%clk 0:00:02.2]} 51. h4 {[%clk 0:00:28.8]} 51...
c3 {[%clk 0:00:01.8]} 52. bxc3 {[%clk 0:00:27.9]} 52... bxc3 {[%clk 0:00:02.5]}
53. h5 {[%clk 0:00:28.8]} 53... Rb8 {[%clk 0:00:02.4]} 54. h6 {[%clk 0:00:27.8]}
54... Rb2 {[%clk 0:00:03]} 55. h7 {[%clk 0:00:27]} 55... Rxf2 {[%clk 0:00:01.1]}
56. Kxf2 {[%clk 0:00:27.9]} 1-0

[Event "*** SCC Grand Prix: Titled Tuesday Blitz"]
[Site "Chess.com"]
[Date "2020.06.02"]
[Round "1"]
[White "1stSecond"]
[Black "crossingthestreet"]
[Result "0-1"]
[WhiteElo "2702"]
[BlackElo "2376"]
[TimeControl "180+1"]
[EndTime "10:07:57 PDT"]
[Termination "crossingthestreet won by checkmate"]

1. c4 {[%clk 0:03:00.5]} 1... e5 {[%clk 0:02:59.3]} 2. Nc3 {[%clk 0:03:00.9]}
2... Nc6 {[%clk 0:02:58.7]} 3. g3 {[%clk 0:03:00.9]} 3... Bc5 {[%clk 0:02:57.8]}
4. Bg2 {[%clk 0:03:01.3]} 4... d6 {[%clk 0:02:57.7]} 5. e3 {[%clk 0:03:01.3]}
5... a6 {[%clk 0:02:57.1]} 6. Nge2 {[%clk 0:03:01.4]} 6... h5 {[%clk 0:02:55.7]}
7. d4 {[%clk 0:03:01.5]} 7... Ba7 {[%clk 0:02:55.3]} 8. Bxc6+ {[%clk 0:03:01.5]}
8... bxc6 {[%clk 0:02:54]} 9. dxe5 {[%clk 0:03:02.4]} 9... dxe5 {[%clk
0:02:44.3]} 10. Qxd8+ {[%clk 0:03:03.3]} 10... Kxd8 {[%clk 0:02:44.9]} 11. f3
{[%clk 0:02:58.8]} 11... Be6 {[%clk 0:02:43.8]} 12. b3 {[%clk 0:02:58.6]} 12...
Nf6 {[%clk 0:02:40.5]} 13. Kf2 {[%clk 0:02:53.7]} 13... Ke7 {[%clk 0:02:39.6]}
14. Ba3+ {[%clk 0:02:53.1]} 14... Ke8 {[%clk 0:02:35.8]} 15. Rad1 {[%clk
0:02:52.2]} 15... Nd7 {[%clk 0:02:35.8]} 16. Ne4 {[%clk 0:02:50.1]} 16... a5
{[%clk 0:02:16.1]} 17. N2c3 {[%clk 0:02:47]} 17... Bf5 {[%clk 0:02:06]} 18. Rd2
{[%clk 0:02:46]} 18... a4 {[%clk 0:01:59.5]} 19. Nxa4 {[%clk 0:02:41.1]} 19...
Bxe4 {[%clk 0:01:58.6]} 20. fxe4 {[%clk 0:02:42]} 20... Nf6 {[%clk 0:01:44.1]}
21. Kf3 {[%clk 0:02:41.9]} 21... g5 {[%clk 0:01:42.4]} 22. Rhd1 {[%clk
0:02:07.1]} 22... g4+ {[%clk 0:01:40.9]} 23. Ke2 {[%clk 0:02:07.3]} 23... Bb6
{[%clk 0:01:10.8]} 24. Bc5 {[%clk 0:01:45.4]} 24... Nxe4 {[%clk 0:00:39.4]} 25.
Bxb6 {[%clk 0:01:29.7]} 25... cxb6 {[%clk 0:00:39.4]} 26. Nxb6 {[%clk
0:01:27.7]} 26... Nxd2 {[%clk 0:00:28.9]} 27. Nxa8 {[%clk 0:01:25.9]} 27... Ne4
{[%clk 0:00:29.3]} 28. Rc1 {[%clk 0:01:09.8]} 28... h4 {[%clk 0:00:28.5]} 29.
Rg1 {[%clk 0:00:49.9]} 29... hxg3 {[%clk 0:00:27.9]} 30. hxg3 {[%clk 0:00:50.8]}
30... Rh2+ {[%clk 0:00:28.1]} 31. Kd3 {[%clk 0:00:51.4]} 31... f5 {[%clk
0:00:25.3]} 32. c5 {[%clk 0:00:46.4]} 32... Rxa2 {[%clk 0:00:25.1]} 33. Nb6
{[%clk 0:00:43.7]} 33... Rd2+ {[%clk 0:00:20.2]} 34. Kc4 {[%clk 0:00:43.7]}
34... Rc2+ {[%clk 0:00:20.3]} 35. Kb4 {[%clk 0:00:43.6]} 35... Rxc5 {[%clk
0:00:20.3]} 36. Nc4 {[%clk 0:00:43.6]} 36... Rb5+ {[%clk 0:00:19.9]} 37. Ka4
{[%clk 0:00:44]} 37... Ke7 {[%clk 0:00:18.9]} 38. b4 {[%clk 0:00:43.2]} 38...
Rd5 {[%clk 0:00:18.4]} 39. Rc1 {[%clk 0:00:42.6]} 39... Nxg3 {[%clk 0:00:15.8]}
40. Nb6 {[%clk 0:00:43.1]} 40... Rd6 {[%clk 0:00:14.9]} 41. Nc8+ {[%clk
0:00:43]} 41... Kd7 {[%clk 0:00:14.9]} 42. Nxd6 {[%clk 0:00:43.2]} 42... Kxd6
{[%clk 0:00:15.8]} 43. Ka5 {[%clk 0:00:43.6]} 43... Ne4 {[%clk 0:00:11.5]} 44.
Kb6 {[%clk 0:00:44]} 44... g3 {[%clk 0:00:10.5]} 45. Rxc6+ {[%clk 0:00:44.5]}
45... Kd7 {[%clk 0:00:10.6]} 46. Rg6 {[%clk 0:00:44.1]} 46... f4 {[%clk
0:00:10.6]} 47. exf4 {[%clk 0:00:44.1]} 47... exf4 {[%clk 0:00:11.5]} 48. b5
{[%clk 0:00:42.5]} 48... f3 {[%clk 0:00:11.8]} 49. Rg7+ {[%clk 0:00:39.5]} 49...
Kd6 {[%clk 0:00:10.8]} 50. Ka7 {[%clk 0:00:32]} 50... f2 {[%clk 0:00:10.5]} 51.
Rf7 {[%clk 0:00:32.4]} 51... g2 {[%clk 0:00:09.4]} 52. b6 {[%clk 0:00:33.3]}
52... g1=Q {[%clk 0:00:05.6]} 53. b7 {[%clk 0:00:34.2]} 53... f1=Q+ {[%clk
0:00:05.6]} 54. Ka8 {[%clk 0:00:33]} 54... Qa1+ {[%clk 0:00:05.1]} 55. Kb8
{[%clk 0:00:32.5]} 55... Qaa7+ {[%clk 0:00:04.9]} 56. Kc8 {[%clk 0:00:32.9]}
56... Qgc5+ {[%clk 0:00:05]} 57. Kd8 {[%clk 0:00:31.9]} 57... Qb8# {[%clk
0:00:05]} 0-1

[Event "*** SCC Grand Prix: Titled Tuesday Blitz"]
[Site "Chess.com"]
[Date "2020.06.02"]
[Round "1"]
[White "peixe64"]
[Black "IwkooO"]
[Result "0-1"]
[WhiteElo "2230"]
[BlackElo "2571"]
[TimeControl "180+1"]
[EndTime "10:07:58 PDT"]
[Termination "IwkooO won by resignation"]

1. d4 {[%clk 0:03:00.9]} 1... Nf6 {[%clk 0:02:59.1]} 2. c4 {[%clk 0:03:01.3]}
2... e6 {[%clk 0:02:58.3]} 3. Nc3 {[%clk 0:03:00.8]} 3... Bb4 {[%clk 0:02:57.9]}
4. e3 {[%clk 0:03:01.4]} 4... O-O {[%clk 0:02:57.5]} 5. Ne2 {[%clk 0:03:01]}
5... d5 {[%clk 0:02:56.3]} 6. a3 {[%clk 0:03:00.2]} 6... Bd6 {[%clk 0:02:56.4]}
7. c5 {[%clk 0:02:49.3]} 7... Be7 {[%clk 0:02:56.5]} 8. Nf4 {[%clk 0:02:47.4]}
8... b6 {[%clk 0:02:51.6]} 9. b4 {[%clk 0:02:43.8]} 9... a5 {[%clk 0:02:51.8]}
10. Bb2 {[%clk 0:02:41.3]} 10... c6 {[%clk 0:02:02.6]} 11. g4 {[%clk 0:02:13.5]}
11... Ba6 {[%clk 0:01:58.6]} 12. h4 {[%clk 0:01:45.8]} 12... Bxf1 {[%clk
0:01:55.7]} 13. Kxf1 {[%clk 0:01:42.4]} 13... Na6 {[%clk 0:01:55.8]} 14. Nd3
{[%clk 0:01:17.1]} 14... Nd7 {[%clk 0:01:37]} 15. g5 {[%clk 0:01:04.8]} 15... e5
{[%clk 0:01:37.3]} 16. dxe5 {[%clk 0:00:59.2]} 16... bxc5 {[%clk 0:01:33.7]} 17.
bxc5 {[%clk 0:00:58.4]} 17... Ndxc5 {[%clk 0:01:31.8]} 18. Nf4 {[%clk
0:00:47.6]} 18... Ne6 {[%clk 0:01:27]} 19. Nce2 {[%clk 0:00:43.9]} 19... Rb8
{[%clk 0:01:25.1]} 20. Rb1 {[%clk 0:00:40.4]} 20... Nac5 {[%clk 0:01:24.5]} 21.
Nd4 {[%clk 0:00:35.8]} 21... Qd7 {[%clk 0:01:11.8]} 22. Nf5 {[%clk 0:00:26.8]}
22... Nxf4 {[%clk 0:01:08.6]} 23. Nxe7+ {[%clk 0:00:26.6]} 23... Qxe7 {[%clk
0:01:09.5]} 24. exf4 {[%clk 0:00:27.1]} 24... Ne4 {[%clk 0:01:08.1]} 25. Kg2
{[%clk 0:00:24.5]} 25... Qc5 {[%clk 0:01:04.2]} 26. Qd4 {[%clk 0:00:22.4]} 26...
Qc2 {[%clk 0:00:43]} 27. Rhc1 {[%clk 0:00:20]} 27... Qe2 {[%clk 0:00:43]} 28. e6
{[%clk 0:00:13]} 28... f6 {[%clk 0:00:22.4]} 29. e7 {[%clk 0:00:13]} 29... Rfe8
{[%clk 0:00:20.6]} 30. gxf6 {[%clk 0:00:13.1]} 30... gxf6 {[%clk 0:00:18.9]} 31.
Rg1 {[%clk 0:00:10.6]} 31... Kf7 {[%clk 0:00:17.1]} 32. Kh2 {[%clk 0:00:07.8]}
32... Qxf2+ {[%clk 0:00:15.4]} 33. Qxf2 {[%clk 0:00:07.2]} 33... Nxf2 {[%clk
0:00:16.3]} 34. Bd4 {[%clk 0:00:07.2]} 34... Rxb1 {[%clk 0:00:16.1]} 35. Rxb1
{[%clk 0:00:08.1]} 35... Ne4 {[%clk 0:00:15.2]} 36. Rb6 {[%clk 0:00:09]} 36...
c5 {[%clk 0:00:15.6]} 37. Bc3 {[%clk 0:00:08.3]} 37... Rxe7 {[%clk 0:00:15.7]}
38. Bxa5 {[%clk 0:00:07.6]} 38... Ra7 {[%clk 0:00:16.3]} 39. Be1 {[%clk
0:00:06.9]} 39... Rxa3 {[%clk 0:00:16.6]} 40. Rb7+ {[%clk 0:00:07.5]} 40... Ke6
{[%clk 0:00:16.7]} 41. Rxh7 {[%clk 0:00:07.2]} 41... Kf5 {[%clk 0:00:16.4]} 42.
Rg7 {[%clk 0:00:06.4]} 42... Re3 {[%clk 0:00:16.2]} 43. Bg3 {[%clk 0:00:05.8]}
43... Nxg3 {[%clk 0:00:14.2]} 44. Rxg3 {[%clk 0:00:06.7]} 44... Rxg3 {[%clk
0:00:14.5]} 45. Kxg3 {[%clk 0:00:07.6]} 45... d4 {[%clk 0:00:15.1]} 46. h5
{[%clk 0:00:07.7]} 46... c4 {[%clk 0:00:15.6]} 47. Kf3 {[%clk 0:00:08.4]} 47...
c3 {[%clk 0:00:15.2]} 48. Ke2 {[%clk 0:00:08.5]} 48... c2 {[%clk 0:00:14.6]} 49.
Kd2 {[%clk 0:00:08.7]} 49... d3 {[%clk 0:00:15.1]} 50. Kc1 {[%clk 0:00:08.8]}
50... Ke6 {[%clk 0:00:14.9]} 51. Kd2 {[%clk 0:00:09]} 51... Kf7 {[%clk
0:00:15.2]} 52. f5 {[%clk 0:00:08.5]} 52... Kg7 {[%clk 0:00:15.4]} 53. Kc1
{[%clk 0:00:08.6]} 53... Kh6 {[%clk 0:00:15.7]} 54. Kd2 {[%clk 0:00:09.5]} 54...
Kxh5 {[%clk 0:00:16.1]} 55. Kc1 {[%clk 0:00:10.4]} 55... Kg4 {[%clk 0:00:16.5]}
56. Kd2 {[%clk 0:00:11.3]} 56... Kxf5 {[%clk 0:00:16.9]} 57. Kc1 {[%clk
0:00:12.2]} 0-1

[Event "*** SCC Grand Prix: Titled Tuesday Blitz"]
[Site "Chess.com"]
[Date "2020.06.02"]
[Round "1"]
[White "gross-aleks"]
[Black "goldenpuppy"]
[Result "1/2-1/2"]
[WhiteElo "2543"]
[BlackElo "2215"]
[TimeControl "180+1"]
[EndTime "10:07:58 PDT"]
[Termination "Game drawn by repetition"]

1. c4 {[%clk 0:03:00.8]} 1... e5 {[%clk 0:02:59.3]} 2. g3 {[%clk 0:03:00.2]}
2... Nc6 {[%clk 0:02:56.2]} 3. Bg2 {[%clk 0:03:00.1]} 3... d6 {[%clk 0:02:56.4]}
4. Nc3 {[%clk 0:02:59.8]} 4... g6 {[%clk 0:02:55.4]} 5. Rb1 {[%clk 0:02:59.1]}
5... Bg7 {[%clk 0:02:55.8]} 6. b4 {[%clk 0:02:59.2]} 6... Nge7 {[%clk
0:02:56.2]} 7. b5 {[%clk 0:02:59.2]} 7... Nb8 {[%clk 0:02:55.7]} 8. e3 {[%clk
0:02:58]} 8... O-O {[%clk 0:02:55.9]} 9. Nf3 {[%clk 0:02:56.7]} 9... f5 {[%clk
0:02:56.5]} 10. d4 {[%clk 0:02:55.8]} 10... e4 {[%clk 0:02:56]} 11. Nd2 {[%clk
0:02:55.6]} 11... Be6 {[%clk 0:02:56.1]} 12. h4 {[%clk 0:02:53]} 12... Nd7
{[%clk 0:02:56]} 13. Ne2 {[%clk 0:02:52.2]} 13... a6 {[%clk 0:02:54.4]} 14. a4
{[%clk 0:02:51.3]} 14... axb5 {[%clk 0:02:53.7]} 15. axb5 {[%clk 0:02:52.2]}
15... Qe8 {[%clk 0:02:50.4]} 16. Qc2 {[%clk 0:02:45.3]} 16... d5 {[%clk
0:02:49.5]} 17. c5 {[%clk 0:02:43.9]} 17... Nf6 {[%clk 0:02:47.6]} 18. Qb3
{[%clk 0:02:33.6]} 18... Ra5 {[%clk 0:02:43.4]} 19. Qb4 {[%clk 0:02:26.2]} 19...
Ra8 {[%clk 0:02:34.5]} 20. Ba3 {[%clk 0:02:16.3]} 20... c6 {[%clk 0:02:32.4]}
21. Nf4 {[%clk 0:02:13.6]} 21... Qd7 {[%clk 0:02:30.4]} 22. Nxe6 {[%clk
0:02:12.5]} 22... Qxe6 {[%clk 0:02:29.5]} 23. Bb2 {[%clk 0:02:09.6]} 23... Ng4
{[%clk 0:02:25.8]} 24. Nb3 {[%clk 0:02:06.1]} 24... h6 {[%clk 0:02:22.3]} 25.
Bh3 {[%clk 0:02:01.8]} 25... Nf6 {[%clk 0:02:14.9]} 26. Kd2 {[%clk 0:01:54.4]}
26... Nh7 {[%clk 0:02:14.1]} 27. Rbg1 {[%clk 0:01:51.5]} 27... Ra7 {[%clk
0:02:07.6]} 28. Kc2 {[%clk 0:01:50.5]} 28... Rfa8 {[%clk 0:02:06.7]} 29. Ra1
{[%clk 0:01:49.4]} 29... Rxa1 {[%clk 0:02:06.2]} 30. Nxa1 {[%clk 0:01:48.7]}
30... g5 {[%clk 0:02:04.6]} 31. hxg5 {[%clk 0:01:47.6]} 31... hxg5 {[%clk
0:02:04.7]} 32. Nb3 {[%clk 0:01:46.6]} 32... Qf6 {[%clk 0:01:53.5]} 33. bxc6
{[%clk 0:01:42.9]} 33... bxc6 {[%clk 0:01:51.7]} 34. Qb7 {[%clk 0:01:42.2]}
34... Ra4 {[%clk 0:01:45.2]} 35. Qd7 {[%clk 0:01:40.9]} 35... Nf8 {[%clk
0:01:42.8]} 36. Qd6 {[%clk 0:01:35.6]} 36... Rc4+ {[%clk 0:01:09]} 37. Bc3
{[%clk 0:01:30.5]} 37... Qf7 {[%clk 0:01:04.5]} 38. Na5 {[%clk 0:01:27.7]} 38...
Ra4 {[%clk 0:00:59.5]} 39. Kb3 {[%clk 0:01:25.8]} 39... Rxa5 {[%clk 0:00:37]}
40. Bxa5 {[%clk 0:01:26.7]} 40... f4 {[%clk 0:00:24.4]} 41. gxf4 {[%clk
0:01:27.6]} 41... gxf4 {[%clk 0:00:24.3]} 42. Bd8 {[%clk 0:01:23]} 42... Nf5
{[%clk 0:00:21.6]} 43. Qxf4 {[%clk 0:01:19.5]} 43... Nxd4+ {[%clk 0:00:20.9]}
44. Ka2 {[%clk 0:01:01.2]} 44... Qa7+ {[%clk 0:00:20.3]} 45. Kb1 {[%clk
0:01:01.6]} 45... Nb3 {[%clk 0:00:16.8]} 46. Bf6 {[%clk 0:00:44.7]} 46... Nd2+
{[%clk 0:00:16.2]} 47. Kc2 {[%clk 0:00:44.4]} 47... Qa2+ {[%clk 0:00:16.1]} 48.
Kd1 {[%clk 0:00:44]} 48... Qb1+ {[%clk 0:00:16.1]} 49. Kxd2 {[%clk 0:00:42.7]}
49... Qd3+ {[%clk 0:00:15]} 50. Kc1 {[%clk 0:00:42.8]} 50... Qa3+ {[%clk
0:00:14.9]} 51. Kc2 {[%clk 0:00:41.8]} 51... Qa2+ {[%clk 0:00:15.1]} 52. Kc3
{[%clk 0:00:37.5]} 52... Qa3+ {[%clk 0:00:15.2]} 53. Kd2 {[%clk 0:00:33.9]}
53... Qa2+ {[%clk 0:00:15.3]} 54. Ke1 {[%clk 0:00:30.4]} 54... Qb1+ {[%clk
0:00:15.2]} 55. Kd2 {[%clk 0:00:29.8]} 55... Qd3+ {[%clk 0:00:16]} 56. Kc1
{[%clk 0:00:29.2]} 56... Qa3+ {[%clk 0:00:16.5]} 57. Kb1 {[%clk 0:00:27.8]}
57... Qb3+ {[%clk 0:00:17]} 58. Ka1 {[%clk 0:00:27]} 58... Qa3+ {[%clk
0:00:17.3]} 59. Kb1 {[%clk 0:00:27.3]} 59... Qb3+ {[%clk 0:00:17.8]} 60. Kc1
{[%clk 0:00:27]} 60... Qa3+ {[%clk 0:00:18.1]} 1/2-1/2